fUSD/lending_fUSD_20250205
["ID","MTS","AMOUNT","RATE_DAILY","PERIOD"]
[351703323,1738758650188,-500.0,9.344e-05,2]
[351703324,1738758650198,-500.0,9.344e-05,2]
[351703325,1738758650210,-500.0,9.344e-05,2]
[351703326,1738758650219,-506.42393477,9.344e-05,2]
[351703327,1738758650229,-500.0,9.344e-05,2]
[351703328,1738758650238,-500.0,9.344e-05,2]
[351703329,1738758650247,-577.96,9.344e-05,2]
[351703330,1738758650256,-500.0,9.344e-05,2]
[351703331,1738758650266,-501.42305244,9.344e-05,2]
[351703332,1738758650275,-500.0,9.344e-05,2]
[351703333,1738758650286,-502.49399676,9.344e-05,2]
[351703334,1738758650295,-500.0,9.344e-05,2]
[351703335,1738758650305,-500.0,9.344e-05,2]
[351703336,1738758650316,-500.0,9.344e-05,2]
[351703337,1738758650325,-641.23165317,9.344e-05,2]
[351703338,1738758650335,-541.03,9.344e-05,2]
[351703339,1738758650344,-500.0,9.344e-05,2]
[351703340,1738758650353,-500.0,9.344e-05,2]
[351703341,1738758650363,-500.0,9.344e-05,2]
[351703342,1738758650372,-500.0,9.344e-05,2]
[351703343,1738758650549,-500.0,9.344e-05,2]
[351703344,1738758650559,-500.0,9.344e-05,2]
[351703345,1738758650569,-597.8,9.344e-05,2]
[351703346,1738758650579,-500.0,9.344e-05,2]
[351703347,1738758650589,-500.0,9.344e-05,2]
[351703348,1738758650603,-500.0,9.344e-05,2]
[351703349,1738758650614,-500.0,9.344e-05,2]
[351703350,1738758650623,-500.0,9.344e-05,2]
[351703351,1738758650633,-500.0,9.344e-05,2]
[351703352,1738758650643,-501.24939845,9.344e-05,2]
[351703353,1738758650653,-500.0,9.344e-05,2]
[351703354,1738758650664,-506.90634958,9.344e-05,2]
[351703355,1738758650674,-500.0,9.344e-05,2]
[351703356,1738758650683,-500.0,9.344e-05,2]
[351703357,1738758650693,-501.86113977,9.344e-05,2]
[351703358,1738758650702,-500.0,9.344e-05,2]
[351703359,1738758650711,-500.0,9.344e-05,2]
[351703360,1738758650720,-500.0,9.344e-05,2]
[351703361,1738758650729,-500.0,9.344e-05,2]
[351703362,1738758650738,-500.0,9.344e-05,2]
[351703363,1738758650748,-500.0,9.344e-05,2]
[351703364,1738758650757,-500.0,9.344e-05,2]
[351703365,1738758650766,-500.0,9.344e-05,2]
[351703366,1738758650776,-500.0,9.344e-05,2]
[351703367,1738758650785,-500.0,9.344e-05,2]
[351703368,1738758650794,-501.54270415,9.344e-05,2]
[351703369,1738758650804,-503.81647025,9.344e-05,2]
[351703370,1738758650813,-500.0,9.344e-05,2]
[351703371,1738758650822,-500.0,9.344e-05,2]
[351703372,1738758650832,-500.60285882,9.344e-05,2]
[351703373,1738758650841,-500.0,9.344e-05,2]
[351703374,1738758650850,-500.0,9.344e-05,2]
[351703375,1738758650860,-500.0,9.344e-05,2]
[351703376,1738758650870,-500.0,9.344e-05,2]
[351703377,1738758650880,-500.0,9.344e-05,2]
[351703378,1738758650890,-502.73036821,9.344e-05,2]
[351703379,1738758650899,-506.39161209,9.344e-05,2]
[351703380,1738758650908,-500.0,9.344e-05,2]
[351703381,1738758650917,-500.0,9.344e-05,2]
[351703382,1738758650926,-500.0,9.344e-05,2]
[351703383,1738758650935,-505.49530249,9.344e-05,2]
[351703384,1738758650945,-500.0,9.344e-05,2]
[351703385,1738758650954,-500.0,9.344e-05,2]
[351703386,1738758650963,-503.82236419,9.344e-05,2]
[351703387,1738758650972,-500.0,9.344e-05,2]
[351703388,1738758650981,-500.0,9.344e-05,2]
[351703389,1738758650990,-500.41505875,9.344e-05,2]
[351703390,1738758650999,-500.0,9.344e-05,2]
[351703391,1738758651009,-500.78773294,9.344e-05,2]
[351703392,1738758651018,-500.0,9.344e-05,2]
[351703393,1738758651028,-501.30830215,9.344e-05,2]
[351703394,1738758651037,-500.0,9.344e-05,2]
[351703395,1738758651046,-504.77092606,9.344e-05,2]
[351703396,1738758651055,-500.0,9.344e-05,2]
[351703397,1738758651067,-500.0,9.344e-05,2]
[351703398,1738758651075,-500.0,9.344e-05,2]
[351703399,1738758651085,-501.64689985,9.344e-05,2]
[351703400,1738758651094,-500.0,9.344e-05,2]
[351703401,1738758651103,-500.0,9.344e-05,2]
[351703402,1738758651113,-500.0,9.344e-05,2]
[351703403,1738758651124,-504.34214595,9.344e-05,2]
[351703404,1738758651134,-500.0,9.344e-05,2]
[351703405,1738758651143,-500.0,9.344e-05,2]
[351703406,1738758651152,-500.0,9.344e-05,2]
[351703407,1738758651161,-500.0,9.344e-05,2]
[351703408,1738758651171,-500.0,9.344e-05,2]
[351703409,1738758651180,-500.0,9.344e-05,2]
[351703410,1738758651189,-501.40385997,9.344e-05,2]
[351703411,1738758651201,-500.0,9.344e-05,2]
[351703412,1738758651211,-504.35508023,9.344e-05,2]
[351703413,1738758651220,-500.0,9.344e-05,2]
[351703414,1738758651230,-500.0,9.344e-05,2]
[351703415,1738758651240,-500.0,9.344e-05,2]
[351703416,1738758651250,-546.11,9.344e-05,2]
[351703417,1738758651259,-502.07138074,9.344e-05,2]
[351703418,1738758651269,-500.0,9.344e-05,2]
[351703419,1738758651279,-500.0,9.344e-05,2]
[351703420,1738758651290,-500.0,9.344e-05,2]
[351703421,1738758651300,-500.0,9.344e-05,2]
[351703422,1738758651309,-501.98658245,9.344e-05,2]
[351703423,1738758651323,-569.33,9.344e-05,2]
[351703424,1738758651332,-500.0,9.344e-05,2]
[351703425,1738758651342,-502.37291436,9.344e-05,2]
[351703426,1738758651351,-503.83298334,9.344e-05,2]
[351703427,1738758651360,-500.0,9.344e-05,2]
[351703428,1738758651370,-490.00335103,9.344e-05,2]
[351703429,1738758651379,-500.0,9.344e-05,2]
[351703430,1738758651389,-500.0,9.344e-05,2]
[351703431,1738758651399,-503.82522464,9.344e-05,2]
[351703432,1738758651409,-501.41943235,9.344e-05,2]
[351703433,1738758651418,-500.0,9.344e-05,2]
[351703434,1738758651427,-503.48655146,9.344e-05,2]
[351703435,1738758651436,-505.59051928,9.344e-05,2]
[351703436,1738758651447,-500.0,9.344e-05,2]
[351703437,1738758651456,-500.0,9.344e-05,2]
[351703438,1738758651466,-523.12,9.344e-05,2]
[351703439,1738758651475,-500.0,9.344e-05,2]
[351703440,1738758651484,-500.0,9.344e-05,2]
[351703441,1738758651494,-500.0,9.344e-05,2]
[351703442,1738758651503,-500.0,9.344e-05,2]
[351703443,1738758651512,-506.35277512,9.344e-05,2]
[351703444,1738758651522,-500.0,9.344e-05,2]
[351703445,1738758651531,-500.0,9.344e-05,2]
[351703446,1738758651540,-500.0,9.344e-05,2]
[351703447,1738758651549,-500.0,9.344e-05,2]
[351703448,1738758651558,-500.0,9.344e-05,2]
[351703449,1738758651569,-500.0,9.344e-05,2]
[351703450,1738758651578,-500.0,9.344e-05,2]
[351703451,1738758651587,-500.0,9.344e-05,2]
[351703452,1738758651597,-501.81869883,9.344e-05,2]
[351703453,1738758651606,-500.0,9.344e-05,2]
[351703454,1738758651616,-528.89660565,9.344e-05,2]
[351703455,1738758651626,-500.0,9.344e-05,2]
[351703456,1738758651635,-500.0,9.344e-05,2]
[351703457,1738758651644,-500.0,9.344e-05,2]
[351703458,1738758651653,-500.0,9.344e-05,2]
[351703459,1738758651662,-500.0,9.344e-05,2]
[351703460,1738758651672,-500.0,9.344e-05,2]
[351703461,1738758651682,-469.26,9.344e-05,2]
[351703462,1738758651691,-503.22369949,9.344e-05,2]
[351703463,1738758651699,-500.0,9.344e-05,2]
[351703464,1738758651708,-500.0,9.344e-05,2]
[351703465,1738758651717,-500.0,9.344e-05,2]
[351703466,1738758651727,-500.0,9.344e-05,2]
[351703467,1738758651736,-500.0,9.344e-05,2]
[351703468,1738758651744,-502.12238638,9.344e-05,2]
[351703469,1738758651753,-500.0,9.344e-05,2]
[351703470,1738758651763,-500.0,9.344e-05,2]
[351703471,1738758651772,-500.0,9.344e-05,2]
[351703472,1738758651781,-495.15704993,9.344e-05,2]
[351703473,1738758651790,-501.64440916,9.344e-05,2]
[351703474,1738758651799,-500.0,9.344e-05,2]
[351703475,1738758651808,-187.65,9.344e-05,2]
[351703476,1738758651819,-502.18684586,9.344e-05,2]
[351703477,1738758651828,-500.0,9.344e-05,2]
[351703478,1738758651838,-503.12290488,9.344e-05,2]
[351703479,1738758651846,-500.0,9.344e-05,2]
[351703480,1738758651856,-500.0,9.344e-05,2]
[351703481,1738758651864,-500.0,9.344e-05,2]
[351703482,1738758651873,-500.0,9.344e-05,2]
[351703483,1738758651886,-500.0,9.344e-05,2]
[351703484,1738758651895,-500.0,9.344e-05,2]
[351703485,1738758651904,-500.0,9.344e-05,2]
[351703486,1738758651913,-500.0,9.344e-05,2]
[351703487,1738758651922,-500.0,9.344e-05,2]
[351703488,1738758651931,-500.0,9.344e-05,2]
[351703489,1738758651940,-500.0,9.344e-05,2]
[351703490,1738758651949,-500.0,9.344e-05,2]
[351703491,1738758651959,-500.0,9.344e-05,2]
[351703492,1738758651968,-500.0,9.344e-05,2]
[351703493,1738758651977,-500.0,9.344e-05,2]
[351703494,1738758651986,-501.61388239,9.344e-05,2]
[351703495,1738758651995,-503.57699953,9.344e-05,2]
[351703496,1738758652003,-500.0,9.344e-05,2]
[351703497,1738758652013,-500.0,9.344e-05,2]
[351703498,1738758652022,-500.0,9.344e-05,2]
[351703499,1738758652031,-508.54166969,9.344e-05,2]
[351703500,1738758652040,-500.0,9.344e-05,2]
[351703501,1738758652049,-171.90554489,9.344e-05,2]
[351703502,1738758652058,-506.6053032,9.344e-05,2]
[351703503,1738758652069,-500.0,9.344e-05,2]
[351703504,1738758652078,-500.0,9.344e-05,2]
[351703505,1738758652087,-500.0,9.344e-05,2]
[351703506,1738758652096,-500.0,9.344e-05,2]
[351703507,1738758652105,-501.02110149,9.344e-05,2]
[351703508,1738758652113,-502.46215752,9.344e-05,2]
[351703509,1738758652123,-500.0,9.344e-05,2]
[351703510,1738758652133,-501.82028011,9.344e-05,2]
[351703511,1738758652142,-569.93,9.344e-05,2]
[351703512,1738758652152,-500.0,9.344e-05,2]
[351703513,1738758652162,-500.0,9.344e-05,2]
[351703514,1738758652171,-500.0,9.344e-05,2]
[351703515,1738758652180,-501.21810987,9.344e-05,2]
[351703516,1738758652190,-501.88937009,9.344e-05,2]
[351703517,1738758652201,-500.0,9.344e-05,2]
[351703518,1738758652211,-500.0,9.344e-05,2]
[351703519,1738758652220,-500.0,9.344e-05,2]
[351703520,1738758652230,-500.0,9.344e-05,2]
[351703521,1738758652239,-500.0,9.344e-05,2]
[351703522,1738758652248,-500.0,9.344e-05,2]
[351703523,1738758652266,-500.0,9.344e-05,2]
[351703524,1738758652277,-500.0,9.344e-05,2]
[351703525,1738758652288,-500.0,9.344e-05,2]
[351703526,1738758652297,-500.0,9.344e-05,2]
[351703527,1738758652307,-500.0,9.344e-05,2]
[351703528,1738758652327,-500.0,9.344e-05,2]
[351703529,1738758652339,-500.64297924,9.344e-05,2]
[351703530,1738758652348,-502.31327816,9.344e-05,2]
[351703531,1738758652357,-253.71034042,9.344e-05,2]
[351703532,1738758652367,-500.0,9.344e-05,2]
[351703533,1738758652377,-500.0,9.344e-05,2]
[351703534,1738758652388,-500.0,9.344e-05,2]
[351703535,1738758652398,-502.2036621,9.344e-05,2]
[351703536,1738758652410,-627.86,9.344e-05,2]
[351703537,1738758652430,-500.15561613,9.344e-05,2]
[351703538,1738758652450,-815.41,9.344e-05,2]
[351703539,1738758652461,-500.0,9.344e-05,2]
[351703540,1738758652471,-500.0,9.344e-05,2]
[351703541,1738758652481,-502.40082319,9.344e-05,2]
[351703542,1738758652491,-500.0,9.344e-05,2]
[351703543,1738758652501,-500.0,9.344e-05,2]
[351703544,1738758652511,-500.0,9.344e-05,2]
[351703545,1738758652521,-501.82788766,9.344e-05,2]
[351703546,1738758652531,-500.0,9.344e-05,2]
[351703547,1738758652540,-500.0,9.344e-05,2]
[351703548,1738758652550,-503.70686959,9.344e-05,2]
[351703549,1738758652559,-500.0,9.344e-05,2]
[351703550,1738758652573,-500.0,9.344e-05,2]
[351703551,1738758652583,-509.342218,9.344e-05,2]
[351703552,1738758652592,-500.0,9.344e-05,2]
[351703553,1738758652602,-500.0,9.344e-05,2]
[351703554,1738758652611,-500.0,9.344e-05,2]
[351703555,1738758652620,-609.73,9.344e-05,2]
[351703556,1738758652630,-500.0,9.344e-05,2]
[351703557,1738758652639,-552.72390782,9.344e-05,2]
[351703558,1738758652648,-500.0,9.344e-05,2]
[351703559,1738758652658,-500.0,9.344e-05,2]
[351703560,1738758652667,-500.0,9.344e-05,2]
[351703561,1738758652676,-500.0,9.344e-05,2]
[351703562,1738758652685,-500.0,9.344e-05,2]
[351703563,1738758652695,-503.34905714,9.344e-05,2]
[351703564,1738758652704,-500.0,9.344e-05,2]
[351703565,1738758652713,-500.41232938,9.344e-05,2]
[351703566,1738758652723,-500.0,9.344e-05,2]
[351703567,1738758652733,-500.0,9.344e-05,2]
[351703568,1738758652742,-500.0,9.344e-05,2]
[351703569,1738758652751,-500.0,9.344e-05,2]
[351703570,1738758652760,-602.41435437,9.344e-05,2]
[351703571,1738758652769,-500.0,9.344e-05,2]
[351703572,1738758652779,-500.0,9.344e-05,2]
[351703573,1738758652788,-1044.87,9.344e-05,2]
[351703574,1738758652797,-500.0,9.344e-05,2]
[351703575,1738758652806,-575.74153864,9.344e-05,2]
[351703576,1738758652816,-500.0,9.344e-05,2]
[351703577,1738758652825,-500.0,9.344e-05,2]
[351703578,1738758652834,-500.0,9.344e-05,2]
[351703579,1738758652843,-500.0,9.344e-05,2]
[351703580,1738758652852,-500.0,9.344e-05,2]
[351703581,1738758652862,-500.0,9.344e-05,2]
[351703582,1738758652871,-500.0,9.344e-05,2]
[351703583,1738758652880,-500.0,9.344e-05,2]
[351703584,1738758652890,-500.0,9.344e-05,2]
[351703585,1738758652899,-500.0,9.344e-05,2]
[351703586,1738758652908,-520.72,9.344e-05,2]
[351703587,1738758652917,-500.0,9.344e-05,2]
[351703588,1738758652926,-500.0,9.344e-05,2]
[351703589,1738758652935,-500.0,9.344e-05,2]
[351703590,1738758652944,-505.13518504,9.344e-05,2]
[351703591,1738758652954,-615.88,9.344e-05,2]
[351703592,1738758652963,-500.0,9.344e-05,2]
[351703593,1738758652973,-500.0,9.344e-05,2]
[351703594,1738758652982,-715.94,9.344e-05,2]
[351703595,1738758652991,-500.0,9.344e-05,2]
[351703596,1738758652999,-500.0,9.344e-05,2]
[351703597,1738758653008,-593.45,9.344e-05,2]
[351703598,1738758653017,-419.86247637,9.344e-05,2]
[351703599,1738758653026,-500.0,9.344e-05,2]
[351703600,1738758653035,-500.0,9.344e-05,2]
[351703601,1738758653044,-533.36025538,9.344e-05,2]
[351703602,1738758653052,-500.0,9.344e-05,2]
[351703603,1738758653061,-500.0,9.344e-05,2]
[351703604,1738758653071,-500.0,9.344e-05,2]
[351703605,1738758653080,-500.72619211,9.344e-05,2]
[351703606,1738758653089,-504.74872521,9.344e-05,2]
[351703607,1738758653097,-500.0,9.344e-05,2]
[351703608,1738758653106,-500.0,9.344e-05,2]
[351703609,1738758653115,-500.0,9.344e-05,2]
[351703610,1738758653125,-201.16213902,9.344e-05,2]
[351703611,1738758653134,-1515.32,9.344e-05,2]
[351703612,1738758653143,-500.0,9.344e-05,2]
[351703613,1738758653158,-500.0,9.344e-05,2]
[351703614,1738758653171,-802.93,9.344e-05,2]
[351703615,1738758653184,-500.0,9.344e-05,2]
[351703616,1738758653196,-500.0,9.344e-05,2]
[351703617,1738758653207,-521.03,9.344e-05,2]
[351703618,1738758653216,-581.69,9.344e-05,2]
[351703619,1738758653225,-500.0,9.344e-05,2]
[351703620,1738758653234,-500.0,9.344e-05,2]
[351703621,1738758653244,-501.4550873,9.344e-05,2]
[351703622,1738758653253,-504.7262883,9.344e-05,2]
[351703623,1738758653262,-500.0,9.344e-05,2]
[351703624,1738758653271,-500.54308321,9.344e-05,2]
[351703625,1738758653280,-504.76416837,9.344e-05,2]
[351703626,1738758653290,-518.02,9.344e-05,2]
[351703627,1738758653299,-500.0,9.344e-05,2]
[351703628,1738758653308,-666.38,9.344e-05,2]
[351703629,1738758653320,-501.25898684,9.344e-05,2]
[351703630,1738758653329,-500.0,9.344e-05,2]
[351703631,1738758653339,-500.98671379,9.344e-05,2]
[351703632,1738758653348,-500.0,9.344e-05,2]
[351703633,1738758653358,-502.97445602,9.344e-05,2]
[351703634,1738758653368,-503.2586165,9.344e-05,2]
[351703635,1738758653377,-500.0,9.344e-05,2]
[351703636,1738758653386,-500.0,9.344e-05,2]
[351703637,1738758653395,-500.0,9.344e-05,2]
[351703638,1738758653404,-500.0,9.344e-05,2]
[351703639,1738758653413,-865.56,9.344e-05,2]
[351703640,1738758653422,-500.0,9.344e-05,2]
[351703641,1738758653431,-500.0,9.344e-05,2]
[351703642,1738758653440,-500.0,9.344e-05,2]
[351703643,1738758653449,-501.23612252,9.344e-05,2]
[351703644,1738758653458,-500.0,9.344e-05,2]
[351703645,1738758653468,-500.0,9.344e-05,2]
[351703646,1738758653477,-500.0,9.344e-05,2]
[351703647,1738758653487,-500.0,9.344e-05,2]
[351703648,1738758653496,-500.0,9.344e-05,2]
[351703649,1738758653506,-501.68325721,9.344e-05,2]
[351703650,1738758653515,-500.0,9.344e-05,2]
[351703651,1738758653524,-500.0,9.344e-05,2]
[351703652,1738758653534,-500.0,9.344e-05,2]
[351703653,1738758653543,-500.0,9.344e-05,2]
[351703654,1738758653557,-501.14047038,9.344e-05,2]
[351703655,1738758653576,-500.0,9.344e-05,2]
[351703656,1738758653586,-500.0,9.344e-05,2]
[351703657,1738758653596,-500.0,9.344e-05,2]
[351703658,1738758653607,-500.0,9.344e-05,2]
[351703659,1738758653617,-500.0,9.344e-05,2]
[351703660,1738758653627,-500.0,9.344e-05,2]
[351703661,1738758653637,-500.0,9.344e-05,2]
[351703662,1738758653647,-500.0,9.344e-05,2]
[351703663,1738758653656,-500.0,9.344e-05,2]
[351703664,1738758653666,-500.0,9.344e-05,2]
[351703665,1738758653675,-501.64834329,9.344e-05,2]
[351703666,1738758653686,-500.0,9.344e-05,2]
[351703667,1738758653696,-500.0,9.344e-05,2]
[351703668,1738758653706,-500.0,9.344e-05,2]
[351703669,1738758653716,-763.62,9.344e-05,2]
[351703670,1738758653726,-501.9908137,9.344e-05,2]
[351703671,1738758653736,-500.0,9.344e-05,2]
[351703672,1738758653745,-500.0,9.344e-05,2]
[351703673,1738758653754,-500.24600066,9.344e-05,2]
[351703674,1738758653763,-500.0,9.344e-05,2]
[351703675,1738758653939,-500.0,9.344e-05,2]
[351703676,1738758653949,-500.0,9.344e-05,2]
[351703677,1738758653958,-500.0,9.344e-05,2]
[351703678,1738758653968,-503.81574599,9.344e-05,2]
[351703679,1738758653977,-500.0,9.344e-05,2]
[351703680,1738758653987,-500.0,9.344e-05,2]
[351703681,1738758653996,-501.87434563,9.344e-05,2]
[351703682,1738758654005,-500.0,9.344e-05,2]
[351703683,1738758654015,-502.40204349,9.344e-05,2]
[351703684,1738758654024,-500.0,9.344e-05,2]
[351703685,1738758654034,-500.0,9.344e-05,2]
[351703686,1738758654043,-754.21,9.344e-05,2]
[351703687,1738758654051,-500.0,9.344e-05,2]
[351703688,1738758654060,-500.0,9.344e-05,2]
[351703689,1738758654070,-500.0,9.344e-05,2]
[351703690,1738758654079,-3159.35,9.344e-05,2]
[351703691,1738758654088,-501.86345148,9.344e-05,2]
[351703692,1738758654097,-500.0,9.344e-05,2]
[351703693,1738758654107,-501.29698322,9.344e-05,2]
[351703694,1738758654116,-500.0,9.344e-05,2]
[351703695,1738758654125,-500.0,9.344e-05,2]
[351703696,1738758654135,-301.24288292,9.344e-05,2]
[351703697,1738758654145,-500.0,9.344e-05,2]
[351703698,1738758654154,-578.44,9.344e-05,2]
[351703699,1738758654163,-500.0,9.344e-05,2]
[351703700,1738758654173,-500.0,9.344e-05,2]
[351703701,1738758654182,-500.0,9.344e-05,2]
[351703702,1738758654193,-500.0,9.344e-05,2]
[351703703,1738758654204,-500.0,9.344e-05,2]
[351703704,1738758654214,-500.0,9.344e-05,2]
[351703705,1738758654223,-500.0,9.344e-05,2]
[351703706,1738758654233,-510.92396905,9.344e-05,2]
[351703707,1738758654242,-500.0,9.344e-05,2]
[351703708,1738758654254,-500.0,9.344e-05,2]
[351703709,1738758654263,-502.39605554,9.344e-05,2]
[351703710,1738758654272,-791.99,9.344e-05,2]
[351703711,1738758654283,-501.56952086,9.344e-05,2]
[351703712,1738758654293,-501.52757016,9.344e-05,2]
[351703713,1738758654302,-500.0,9.344e-05,2]
[351703714,1738758654311,-500.0,9.344e-05,2]
[351703715,1738758654324,-501.53842099,9.344e-05,2]
[351703716,1738758654333,-503.75290173,9.344e-05,2]
[351703717,1738758654343,-500.0,9.344e-05,2]
[351703718,1738758654352,-500.0,9.344e-05,2]
[351703719,1738758654361,-502.83076601,9.344e-05,2]
[351703720,1738758654371,-500.0,9.344e-05,2]
[351703721,1738758654380,-500.0,9.344e-05,2]
[351703722,1738758654390,-500.0,9.344e-05,2]
[351703723,1738758654399,-500.0,9.344e-05,2]
[351703724,1738758654408,-339.73,9.345e-05,2]
[351703725,1738758654417,-500.0,9.345e-05,2]
[351703726,1738758654427,-500.0,9.345e-05,2]
[351703727,1738758654437,-500.0,9.345e-05,2]
[351703728,1738758654447,-278.26,9.345e-05,2]
[351703729,1738758654457,-500.0,9.345e-05,2]
[351703730,1738758654467,-500.0,9.345e-05,2]
[351703731,1738758654476,-312.93,9.345e-05,2]
[351703732,1738758654486,-151.0,9.346e-05,2]
[351703733,1738758654495,-198.989402,9.346e-05,2]
[351703734,1738758654505,-7667.49444164,9.37e-05,2]
[351703735,1738758654514,-1416.0,9.439e-05,2]
[351703736,1738758654523,-500.0,9.479e-05,2]
[351703737,1738758654532,-500.0,9.479e-05,2]
[351703738,1738758654542,-500.0,9.479e-05,2]
[351703739,1738758654551,-876.9,9.479e-05,2]
[351703740,1738758654560,-500.0,9.479e-05,2]
[351703741,1738758654571,-500.0,9.479e-05,2]
[351703742,1738758654580,-500.0,9.479e-05,2]
[351703743,1738758654589,-732.38,9.479e-05,2]
[351703744,1738758654598,-589.15,9.479e-05,2]
[351703745,1738758654607,-500.0,9.479e-05,2]
[351703746,1738758654616,-500.0,9.479e-05,2]
[351703747,1738758654627,-500.0,9.479e-05,2]
[351703748,1738758654636,-500.0,9.479e-05,2]
[351703749,1738758654646,-500.0,9.479e-05,2]
[351703750,1738758654656,-624.73,9.479e-05,2]
[351703751,1738758654665,-500.0,9.479e-05,2]
[351703752,1738758654674,-500.0,9.479e-05,2]
[351703753,1738758654683,-500.0,9.479e-05,2]
[351703754,1738758654694,-500.0,9.479e-05,2]
[351703755,1738758654703,-500.0,9.479e-05,2]
[351703756,1738758654712,-500.0,9.479e-05,2]
[351703757,1738758654721,-500.0,9.479e-05,2]
[351703758,1738758654730,-500.0,9.479e-05,2]
[351703759,1738758654739,-500.0,9.479e-05,2]
[351703760,1738758654748,-500.0,9.479e-05,2]
[351703761,1738758654757,-500.0,9.479e-05,2]
[351703762,1738758654767,-500.0,9.479e-05,2]
[351703763,1738758654775,-500.0,9.479e-05,2]
[351703764,1738758654784,-500.0,9.479e-05,2]
[351703765,1738758654793,-500.0,9.479e-05,2]
[351703766,1738758654802,-897.52,9.479e-05,2]
[351703767,1738758654811,-500.0,9.479e-05,2]
[351703768,1738758654822,-500.0,9.479e-05,2]
[351703769,1738758654831,-500.0,9.479e-05,2]
[351703770,1738758654839,-572.71965878,9.479e-05,2]
[351703771,1738758654848,-500.0,9.479e-05,2]
[351703772,1738758654857,-500.0,9.479e-05,2]
[351703773,1738758654866,-507.49,9.479e-05,2]
[351703774,1738758654875,-500.0,9.479e-05,2]
[351703775,1738758654884,-1272.65,9.479e-05,2]
[351703776,1738758654893,-500.0,9.479e-05,2]
[351703777,1738758654902,-523.42765883,9.48e-05,2]
[351703778,1738758654912,-473.39417644,9.48e-05,2]
[351703779,1738758654922,-500.0,9.48e-05,2]
[351703780,1738758654931,-466.311299,9.48e-05,2]
[351703781,1738758654942,-500.0,9.48e-05,2]
[351703782,1738758654951,-500.0,9.48e-05,2]
[351703783,1738758654960,-500.0,9.48e-05,2]
[351703784,1738758654970,-500.0,9.48e-05,2]
[351703785,1738758654980,-614.34,9.48e-05,2]
[351703786,1738758654989,-500.0,9.48e-05,2]
[351703787,1738758654999,-500.0,9.48e-05,2]
[351703788,1738758655008,-500.0,9.48e-05,2]
[351703789,1738758655018,-500.0,9.48e-05,2]
[351703790,1738758655028,-500.0,9.48e-05,2]
[351703791,1738758655037,-2162.132557,9.48e-05,2]
[351703792,1738758655046,-500.0,9.48e-05,2]
[351703793,1738758655055,-500.0,9.48e-05,2]
[351703794,1738758655065,-500.0,9.48e-05,2]
[351703795,1738758655074,-1839.030105,9.48e-05,2]
[351703796,1738758655083,-500.0,9.48e-05,2]
[351703797,1738758655092,-500.0,9.48e-05,2]
[351703798,1738758655101,-152.922915,9.48e-05,2]
[351703799,1738758655110,-559.08,9.48e-05,2]
[351703800,1738758655119,-500.0,9.48e-05,2]
[351703801,1738758655127,-500.0,9.48e-05,2]
[351703802,1738758655136,-500.0,9.48e-05,2]
[351703803,1738758655145,-586.45,9.48e-05,2]
[351703804,1738758655154,-632.85,9.48e-05,2]
[351703805,1738758655163,-500.0,9.48e-05,2]
[351703806,1738758655171,-839.91,9.48e-05,2]
[351703807,1738758655180,-936.28,9.48e-05,2]
[351703808,1738758655190,-2759.48,9.48e-05,2]
[351703809,1738758655201,-500.0,9.48e-05,2]
[351703810,1738758655212,-500.0,9.48e-05,2]
[351703811,1738758655221,-534.83,9.48e-05,2]
[351703812,1738758655230,-500.0,9.48e-05,2]
[351703813,1738758655239,-1133.61,9.48e-05,2]
[351703814,1738758655248,-500.0,9.48e-05,2]
[351703815,1738758655257,-437.922207,9.48e-05,2]
[351703816,1738758655265,-421.067735,9.48e-05,2]
[351703817,1738758655275,-500.0,9.48e-05,2]
[351703818,1738758655284,-500.0,9.48e-05,2]
[351703819,1738758655293,-500.0,9.48e-05,2]
[351703820,1738758655302,-500.0,9.48e-05,2]
[351703821,1738758655310,-500.0,9.48e-05,2]
[351703822,1738758655320,-500.0,9.48e-05,2]